[Event "Titled Tuesday Blitz June 13 Late 2023"]
[White "Nazari, Arad"]
[Black "ElDivis"]
[WhiteFideId "12577324"]
[WhiteElo "2175"]
[BlackElo "2559"]
[Result "1-0"]
[Round "7"]
[TimeControl "180+2"]
[Date "2023.06.13"]
[WhiteClock "0:02:09"]
[BlackClock "0:00:00"]
[Board "43"]

1. e4 {[%clk 0:03:00]}  c5 {[%clk 0:02:59]} 2. Nf3 {[%clk 0:03:01]}  d6 {[%clk 0:02:59]} 3. Bb5+ {[%clk 0:03:01]}  Bd7 {[%clk 0:02:57]} 4. Bxd7+ {[%clk 0:03:01]}  Qxd7 {[%clk 0:02:57]} 5. O-O {[%clk 0:03:02]}  Nf6 {[%clk 0:02:55]} 6. Re1 {[%clk 0:03:02]}  Nc6 {[%clk 0:02:46]} 7. c3 {[%clk 0:03:03]}  e6 {[%clk 0:02:45]} 8. d4 {[%clk 0:03:04]}  cxd4 {[%clk 0:02:46]} 9. cxd4 {[%clk 0:03:05]}  d5 {[%clk 0:02:46]} 10. e5 {[%clk 0:03:05]}  Ne4 {[%clk 0:02:46]} 11. a3 {[%clk 0:03:06]}  Be7 {[%clk 0:02:38]} 12. Qd3 {[%clk 0:03:06]}  O-O {[%clk 0:02:26]} 13. Nbd2 {[%clk 0:03:05]}  Nxd2 {[%clk 0:02:25]} 14. Bxd2 {[%clk 0:03:06]}  Rac8 {[%clk 0:02:09]} 15. Re3 {[%clk 0:03:03]}  f5 {[%clk 0:01:54]} 16. exf6 {[%clk 0:03:03]}  Bxf6 {[%clk 0:01:54]} 17. Rae1 {[%clk 0:03:04]}  Rce8 {[%clk 0:01:45]} 18. Bc3 {[%clk 0:03:02]}  Qf7 {[%clk 0:01:42]} 19. Qe2 {[%clk 0:03:00]}  Qh5 {[%clk 0:01:37]} 20. Rxe6 {[%clk 0:02:55]}  Rxe6 {[%clk 0:01:25]} 21. Qxe6+ {[%clk 0:02:56]}  Qf7 {[%clk 0:01:20]} 22. h3 {[%clk 0:02:50]}  Qxe6 {[%clk 0:00:53]} 23. Rxe6 {[%clk 0:02:51]}  Rd8 {[%clk 0:00:46]} 24. g4 {[%clk 0:02:45]}  h6 {[%clk 0:00:44]} 25. h4 {[%clk 0:02:41]}  Kf7 {[%clk 0:00:44]} 26. Re3 {[%clk 0:02:41]}  Rd6 {[%clk 0:00:37]} 27. Kg2 {[%clk 0:02:40]}  Re6 {[%clk 0:00:36]} 28. Kg3 {[%clk 0:02:36]}  Rxe3 {[%clk 0:00:34]} 29. fxe3 {[%clk 0:02:37]}  Be7 {[%clk 0:00:31]} 30. Ne1 {[%clk 0:02:29]}  Bd6+ {[%clk 0:00:29]} 31. Kf3 {[%clk 0:02:29]}  Be7 {[%clk 0:00:29]} 32. Ng2 {[%clk 0:02:29]}  g5 {[%clk 0:00:27]} 33. hxg5 {[%clk 0:02:29]}  hxg5 {[%clk 0:00:28]} 34. Ne1 {[%clk 0:02:28]}  Ke6 {[%clk 0:00:27]} 35. Nd3 {[%clk 0:02:28]}  b6 {[%clk 0:00:24]} 36. b4 {[%clk 0:02:29]}  Bd6 {[%clk 0:00:22]} 37. Be1 {[%clk 0:02:29]}  a5 {[%clk 0:00:19]} 38. b5 {[%clk 0:02:26]}  Na7 {[%clk 0:00:18]} 39. a4 {[%clk 0:02:26]}  Nc8 {[%clk 0:00:18]} 40. e4 {[%clk 0:02:18]}  Ne7 {[%clk 0:00:13]} 41. e5 {[%clk 0:02:18]}  Ba3 {[%clk 0:00:13]} 42. Bd2 {[%clk 0:02:16]}  Ng6 {[%clk 0:00:05]} 43. Bxg5 {[%clk 0:02:15]}  Nf8 {[%clk 0:00:04]} 44. Nf4+ {[%clk 0:02:13]}  Kf7 {[%clk 0:00:05]} 45. Bh6 {[%clk 0:02:14]}  Ne6 {[%clk 0:00:03]} 46. Nxe6 {[%clk 0:02:08]}  Kxe6 {[%clk 0:00:04]} 47. Be3 {[%clk 0:02:09]}  Bf8 {[%clk 0:00:01]} 48. Kf4 {[%clk 0:02:08]}  Bh6+ {[%clk 0:00:01]} 49. g5 {[%clk 0:02:08]}  Bg7 {[%clk 0:00:01]} 50. Kg4 {[%clk 0:02:09]}  Bf8 {[%clk 0:00:02]} 51. Kh5 {[%clk 0:02:09]}  Kf5 {[%clk 0:00:02]} 52. g6 {[%clk 0:02:09]}  Ke4 {[%clk 0:00:00]} 53. Bh6 {[%clk 0:02:09]} 1-0


[Site "https://www.chess.com"]

[Event "Titled Tuesday Blitz June 13 Late 2023"]
[White "Tristan, Leonardo"]
[Black "Zavgorodniy, Sergiy"]
[WhiteFideId "113816"]
[BlackFideId "14110148"]
[WhiteElo "2461"]
[BlackElo "2402"]
[Result "1/2-1/2"]
[Round "7"]
[TimeControl "180+2"]
[Date "2023.06.13"]
[WhiteClock "0:00:07"]
[BlackClock "0:00:28"]
[Board "44"]

1. d4 {[%clk 0:03:00]}  d5 {[%clk 0:02:59]} 2. Nf3 {[%clk 0:03:01]}  Nf6 {[%clk 0:02:59]} 3. Bf4 {[%clk 0:03:01]}  e6 {[%clk 0:02:59]} 4. e3 {[%clk 0:03:01]}  c5 {[%clk 0:03:00]} 5. Nbd2 {[%clk 0:03:01]}  Bd6 {[%clk 0:02:59]} 6. Bb5+ {[%clk 0:03:01]}  Nc6 {[%clk 0:02:59]} 7. Bg3 {[%clk 0:03:01]}  O-O {[%clk 0:02:57]} 8. c3 {[%clk 0:03:02]}  cxd4 {[%clk 0:02:53]} 9. exd4 {[%clk 0:02:58]}  Ne7 {[%clk 0:02:45]} 10. Bd3 {[%clk 0:02:56]}  b6 {[%clk 0:02:43]} 11. Bxd6 {[%clk 0:02:51]}  Qxd6 {[%clk 0:02:43]} 12. Ne5 {[%clk 0:02:52]}  Ng6 {[%clk 0:02:42]} 13. Ndf3 {[%clk 0:02:46]}  a5 {[%clk 0:02:36]} 14. O-O {[%clk 0:02:42]}  Ba6 {[%clk 0:02:36]} 15. Bxa6 {[%clk 0:02:40]}  Rxa6 {[%clk 0:02:37]} 16. Qd3 {[%clk 0:02:41]}  Ra7 {[%clk 0:02:36]} 17. a4 {[%clk 0:02:40]}  Rc7 {[%clk 0:02:33]} 18. Rfe1 {[%clk 0:02:37]}  Ne4 {[%clk 0:02:32]} 19. Nxg6 {[%clk 0:02:29]}  hxg6 {[%clk 0:02:33]} 20. Ne5 {[%clk 0:02:30]}  Rb8 {[%clk 0:02:28]} 21. Re2 {[%clk 0:01:30]}  Nf6 {[%clk 0:02:26]} 22. Qb5 {[%clk 0:01:19]}  Nd7 {[%clk 0:02:25]} 23. Nd3 {[%clk 0:01:19]}  Qc6 {[%clk 0:02:20]} 24. Qxc6 {[%clk 0:01:07]}  Rxc6 {[%clk 0:02:21]} 25. g4 {[%clk 0:00:56]}  g5 {[%clk 0:02:19]} 26. Kg2 {[%clk 0:00:55]}  Kf8 {[%clk 0:02:17]} 27. Kg3 {[%clk 0:00:55]}  Ke7 {[%clk 0:02:16]} 28. h4 {[%clk 0:00:55]}  gxh4+ {[%clk 0:02:16]} 29. Kxh4 {[%clk 0:00:56]}  Rh8+ {[%clk 0:02:10]} 30. Kg3 {[%clk 0:00:56]}  Kd6 {[%clk 0:02:09]} 31. g5 {[%clk 0:00:55]}  Rcc8 {[%clk 0:02:06]} 32. Rae1 {[%clk 0:00:52]}  Rh5 {[%clk 0:02:05]} 33. Kg4 {[%clk 0:00:49]}  Rch8 {[%clk 0:02:05]} 34. Nf4 {[%clk 0:00:44]}  Rh4+ {[%clk 0:02:04]} 35. Kg3 {[%clk 0:00:43]}  g6 {[%clk 0:01:49]} 36. f3 {[%clk 0:00:41]}  Nf8 {[%clk 0:01:43]} 37. b3 {[%clk 0:00:39]}  Rh1 {[%clk 0:01:33]} 38. c4 {[%clk 0:00:38]}  dxc4 {[%clk 0:01:28]} 39. bxc4 {[%clk 0:00:38]}  Nd7 {[%clk 0:01:28]} 40. Nd3 {[%clk 0:00:16]}  R8h5 {[%clk 0:01:18]} 41. Rxh1 {[%clk 0:00:11]}  Rxh1 {[%clk 0:01:19]} 42. Rc2 {[%clk 0:00:08]}  e5 {[%clk 0:01:11]} 43. dxe5+ {[%clk 0:00:08]}  Nxe5 {[%clk 0:01:11]} 44. Nxe5 {[%clk 0:00:09]}  Kxe5 {[%clk 0:01:12]} 45. c5 {[%clk 0:00:10]}  bxc5 {[%clk 0:01:02]} 46. Rxc5+ {[%clk 0:00:11]}  Ke6 {[%clk 0:00:57]} 47. Rxa5 {[%clk 0:00:12]}  Ra1 {[%clk 0:00:56]} 48. Kg4 {[%clk 0:00:11]}  Ra3 {[%clk 0:00:55]} 49. Ra6+ {[%clk 0:00:10]}  Ke7 {[%clk 0:00:52]} 50. Kf4 {[%clk 0:00:11]}  Ra1 {[%clk 0:00:50]} 51. Ra7+ {[%clk 0:00:10]}  Ke6 {[%clk 0:00:50]} 52. Ra6+ {[%clk 0:00:11]}  Ke7 {[%clk 0:00:50]} 53. a5 {[%clk 0:00:09]}  Ra4+ {[%clk 0:00:49]} 54. Ke5 {[%clk 0:00:10]}  Ra3 {[%clk 0:00:45]} 55. Ra7+ {[%clk 0:00:11]}  Kf8 {[%clk 0:00:44]} 56. f4 {[%clk 0:00:10]}  Re3+ {[%clk 0:00:43]} 57. Kd4 {[%clk 0:00:10]}  Rf3 {[%clk 0:00:43]} 58. Ke4 {[%clk 0:00:11]}  Ra3 {[%clk 0:00:43]} 59. a6 {[%clk 0:00:12]}  Ra5 {[%clk 0:00:41]} 60. Kd4 {[%clk 0:00:09]}  Kg7 {[%clk 0:00:38]} 61. Ra8 {[%clk 0:00:07]}  Ra4+ {[%clk 0:00:38]} 62. Ke5 {[%clk 0:00:07]}  Ra5+ {[%clk 0:00:39]} 63. Kd6 {[%clk 0:00:08]}  Ra4 {[%clk 0:00:39]} 64. Kc6 {[%clk 0:00:08]}  Rxf4 {[%clk 0:00:39]} 65. Kb6 {[%clk 0:00:09]}  Rb4+ {[%clk 0:00:35]} 66. Kc5 {[%clk 0:00:08]}  Ra4 {[%clk 0:00:34]} 67. Kb6 {[%clk 0:00:07]}  Rb4+ {[%clk 0:00:34]} 68. Ka7 {[%clk 0:00:07]}  f5 {[%clk 0:00:30]} 69. gxf6+ {[%clk 0:00:06]}  Kxf6 {[%clk 0:00:31]} 70. Rb8 {[%clk 0:00:06]}  Ra4 {[%clk 0:00:30]} 71. Rb6+ {[%clk 0:00:05]}  Kf5 {[%clk 0:00:30]} 72. Rb5+ {[%clk 0:00:05]}  Kf4 {[%clk 0:00:30]} 73. Kb6 {[%clk 0:00:06]}  Rxa6+ {[%clk 0:00:26]} 74. Kxa6 {[%clk 0:00:06]}  g5 {[%clk 0:00:27]} 75. Rb8 {[%clk 0:00:03]}  g4 {[%clk 0:00:27]} 76. Rf8+ {[%clk 0:00:04]}  Ke3 {[%clk 0:00:27]} 77. Re8+ {[%clk 0:00:05]}  Kf2 {[%clk 0:00:27]} 78. Rf8+ {[%clk 0:00:05]}  Ke2 {[%clk 0:00:27]} 79. Re8+ {[%clk 0:00:05]}  Kf2 {[%clk 0:00:27]} 80. Rf8+ {[%clk 0:00:06]}  Ke2 {[%clk 0:00:27]} 81. Kb5 {[%clk 0:00:06]}  g3 {[%clk 0:00:27]} 82. Kc4 {[%clk 0:00:06]}  g2 {[%clk 0:00:28]} 83. Rg8 {[%clk 0:00:07]}  Kf1 {[%clk 0:00:28]} 84. Rf8+ {[%clk 0:00:07]}  Ke2 {[%clk 0:00:28]} 85. Re8+ {[%clk 0:00:07]}  Kf1 {[%clk 0:00:28]} 86. Rf8+ {[%clk 0:00:07]}  Ke2 {[%clk 0:00:28]} 1/2-1/2


[Site "https://www.chess.com"]

[Event "Titled Tuesday Blitz June 13 Late 2023"]
[White "Haszon, David"]
[Black "Katz, Alexander"]
[WhiteFideId "733610"]
[BlackFideId "2039796"]
[WhiteElo "2210"]
[BlackElo "2389"]
[Result "0-1"]
[Round "7"]
[TimeControl "180+2"]
[Date "2023.06.13"]
[WhiteClock "0:00:17"]
[BlackClock "0:00:49"]
[Board "47"]

1. d4 {[%clk 0:02:57]}  Nf6 {[%clk 0:02:59]} 2. Nf3 {[%clk 0:02:55]}  d5 {[%clk 0:02:59]} 3. Bf4 {[%clk 0:02:55]}  Bf5 {[%clk 0:02:58]} 4. e3 {[%clk 0:02:53]}  e6 {[%clk 0:02:57]} 5. c4 {[%clk 0:02:52]}  Bb4+ {[%clk 0:02:55]} 6. Nbd2 {[%clk 0:02:49]}  O-O {[%clk 0:02:52]} 7. Qb3 {[%clk 0:02:46]}  c5 {[%clk 0:02:51]} 8. dxc5 {[%clk 0:02:41]}  Nc6 {[%clk 0:02:51]} 9. Be2 {[%clk 0:02:29]}  Ne4 {[%clk 0:02:45]} 10. Qd1 {[%clk 0:02:03]}  dxc4 {[%clk 0:02:38]} 11. a3 {[%clk 0:01:52]}  Ba5 {[%clk 0:02:06]} 12. Bxc4 {[%clk 0:01:44]}  e5 {[%clk 0:02:07]} 13. Bg3 {[%clk 0:01:35]}  Nxg3 {[%clk 0:02:02]} 14. hxg3 {[%clk 0:01:35]}  e4 {[%clk 0:02:03]} 15. Nh4 {[%clk 0:01:30]}  Bg4 {[%clk 0:01:44]} 16. Qxg4 {[%clk 0:00:47]}  Qxd2+ {[%clk 0:01:42]} 17. Kf1 {[%clk 0:00:47]}  Qxb2 {[%clk 0:01:36]} 18. Rd1 {[%clk 0:00:47]}  Rad8 {[%clk 0:01:33]} 19. Rxd8 {[%clk 0:00:37]}  Rxd8 {[%clk 0:01:27]} 20. Kg1 {[%clk 0:00:37]}  Ne5 {[%clk 0:01:14]} 21. Qxe4 {[%clk 0:00:30]}  Rd1+ {[%clk 0:01:07]} 22. Kh2 {[%clk 0:00:29]}  Rxh1+ {[%clk 0:01:07]} 23. Kxh1 {[%clk 0:00:29]}  h5 {[%clk 0:00:54]} 24. Bd5 {[%clk 0:00:25]}  Qc1+ {[%clk 0:00:50]} 25. Kh2 {[%clk 0:00:20]}  Ng4+ {[%clk 0:00:50]} 26. Kh3 {[%clk 0:00:17]}  Qh1# {[%clk 0:00:49]} 0-1


[Site "https://www.chess.com"]

[Event "Titled Tuesday Blitz June 13 Late 2023"]
[White "Arabidze, Meri"]
[Black "benny_aizenberg"]
[WhiteFideId "13604040"]
[WhiteElo "2405"]
[BlackElo "2679"]
[Result "0-1"]
[Round "7"]
[TimeControl "180+2"]
[Date "2023.06.13"]
[WhiteClock "0:01:24"]
[BlackClock "0:01:02"]
[Board "48"]

1. d4 {[%clk 0:03:00]}  Nf6 {[%clk 0:02:56]} 2. c4 {[%clk 0:03:01]}  e6 {[%clk 0:02:55]} 3. Nf3 {[%clk 0:03:02]}  d5 {[%clk 0:02:53]} 4. Nc3 {[%clk 0:03:02]}  dxc4 {[%clk 0:02:44]} 5. e3 {[%clk 0:03:01]}  c5 {[%clk 0:02:41]} 6. Bxc4 {[%clk 0:03:01]}  a6 {[%clk 0:02:41]} 7. a4 {[%clk 0:03:01]}  Nc6 {[%clk 0:02:40]} 8. O-O {[%clk 0:03:01]}  cxd4 {[%clk 0:02:40]} 9. exd4 {[%clk 0:03:01]}  Be7 {[%clk 0:02:36]} 10. Be3 {[%clk 0:03:01]}  Nb4 {[%clk 0:02:33]} 11. Ne5 {[%clk 0:02:58]}  O-O {[%clk 0:02:30]} 12. Qf3 {[%clk 0:02:56]}  Nfd5 {[%clk 0:02:24]} 13. Ne4 {[%clk 0:02:45]}  f6 {[%clk 0:02:04]} 14. Nd3 {[%clk 0:02:38]}  Nxd3 {[%clk 0:02:02]} 15. Bxd3 {[%clk 0:02:38]}  Bd7 {[%clk 0:02:02]} 16. Nc5 {[%clk 0:02:31]}  Bxc5 {[%clk 0:01:42]} 17. dxc5 {[%clk 0:02:32]}  Bc6 {[%clk 0:01:41]} 18. Qh3 {[%clk 0:02:18]}  f5 {[%clk 0:01:30]} 19. Rfd1 {[%clk 0:02:16]}  Qf6 {[%clk 0:01:29]} 20. b3 {[%clk 0:01:51]}  Rad8 {[%clk 0:01:24]} 21. Bc4 {[%clk 0:01:51]}  Nc3 {[%clk 0:01:19]} 22. Rxd8 {[%clk 0:01:35]}  Rxd8 {[%clk 0:01:15]} 23. Re1 {[%clk 0:01:36]}  Bd5 {[%clk 0:01:10]} 24. Bg5 {[%clk 0:01:24]}  Qxg5 {[%clk 0:01:03]} 25. Qxc3 {[%clk 0:01:24]}  Qxg2# {[%clk 0:01:02]} 0-1


[Site "https://www.chess.com"]

[Event "Titled Tuesday Blitz June 13 Late 2023"]
[White "Kucuksari, Kaan"]
[Black "Dudzinski, Pawel"]
[WhiteFideId "6380166"]
[BlackFideId "1117890"]
[WhiteElo "2364"]
[BlackElo "2099"]
[Result "1-0"]
[Round "7"]
[TimeControl "180+2"]
[Date "2023.06.13"]
[WhiteClock "0:00:12"]
[BlackClock "0:00:00"]
[Board "49"]

1. e4 {[%clk 0:03:00]}  c6 {[%clk 0:02:59]} 2. d4 {[%clk 0:02:59]}  d5 {[%clk 0:03:00]} 3. Nc3 {[%clk 0:02:59]}  g6 {[%clk 0:02:59]} 4. e5 {[%clk 0:02:59]}  Bg7 {[%clk 0:02:58]} 5. f4 {[%clk 0:02:57]}  h5 {[%clk 0:02:57]} 6. Nf3 {[%clk 0:02:57]}  Bg4 {[%clk 0:02:57]} 7. Be2 {[%clk 0:02:56]}  e6 {[%clk 0:02:52]} 8. O-O {[%clk 0:02:55]}  Qb6 {[%clk 0:02:51]} 9. Be3 {[%clk 0:02:51]}  Qxb2 {[%clk 0:02:50]} 10. Qd2 {[%clk 0:02:50]}  Qb6 {[%clk 0:02:38]} 11. Rab1 {[%clk 0:02:49]}  Qc7 {[%clk 0:02:38]} 12. Rb3 {[%clk 0:02:48]}  Nd7 {[%clk 0:02:38]} 13. Rfb1 {[%clk 0:02:48]}  b6 {[%clk 0:02:37]} 14. Ng5 {[%clk 0:02:31]}  Bxe2 {[%clk 0:02:30]} 15. Nxe2 {[%clk 0:02:32]}  Bh6 {[%clk 0:02:30]} 16. f5 {[%clk 0:02:23]}  gxf5 {[%clk 0:02:21]} 17. Nf3 {[%clk 0:01:59]}  O-O-O {[%clk 0:02:06]} 18. a4 {[%clk 0:01:52]}  Nf8 {[%clk 0:01:32]} 19. Nc3 {[%clk 0:01:44]}  Kd7 {[%clk 0:00:53]} 20. a5 {[%clk 0:01:42]}  Rb8 {[%clk 0:00:48]} 21. Na4 {[%clk 0:01:32]}  b5 {[%clk 0:00:44]} 22. Nc5+ {[%clk 0:01:32]}  Ke8 {[%clk 0:00:44]} 23. Na6 {[%clk 0:01:33]}  Qb7 {[%clk 0:00:43]} 24. Nxb8 {[%clk 0:01:33]}  Qxb8 {[%clk 0:00:44]} 25. Rc3 {[%clk 0:01:02]}  Kd7 {[%clk 0:00:27]} 26. Rc5 {[%clk 0:01:01]}  a6 {[%clk 0:00:25]} 27. c4 {[%clk 0:00:54]}  Bxe3+ {[%clk 0:00:17]} 28. Qxe3 {[%clk 0:00:54]}  Ne7 {[%clk 0:00:15]} 29. cxb5 {[%clk 0:00:51]}  axb5 {[%clk 0:00:12]} 30. a6 {[%clk 0:00:50]}  Nfg6 {[%clk 0:00:08]} 31. Qa3 {[%clk 0:00:48]}  Qb6 {[%clk 0:00:07]} 32. Ng5 {[%clk 0:00:42]}  Ra8 {[%clk 0:00:08]} 33. Ra1 {[%clk 0:00:38]}  Ke8 {[%clk 0:00:07]} 34. Nh7 {[%clk 0:00:35]}  f4 {[%clk 0:00:06]} 35. Nf6+ {[%clk 0:00:36]}  Kd8 {[%clk 0:00:06]} 36. Kh1 {[%clk 0:00:20]}  Nf8 {[%clk 0:00:05]} 37. a7 {[%clk 0:00:18]}  Nd7 {[%clk 0:00:05]} 38. Rcc1 {[%clk 0:00:16]}  Nxf6 {[%clk 0:00:05]} 39. exf6 {[%clk 0:00:16]}  Ng6 {[%clk 0:00:04]} 40. Qd6+ {[%clk 0:00:16]}  Ke8 {[%clk 0:00:02]} 41. Rxc6 {[%clk 0:00:13]}  Rxa7 {[%clk 0:00:00]} 42. Rc8+ {[%clk 0:00:12]} 1-0


[Site "https://www.chess.com"]

[Event "Titled Tuesday Blitz June 13 Late 2023"]
[White "Piesik, Piotr"]
[Black "Bryakin, Mikhail"]
[WhiteFideId "1136194"]
[BlackFideId "4165314"]
[WhiteElo "2303"]
[BlackElo "2464"]
[Result "0-1"]
[Round "7"]
[TimeControl "180+2"]
[Date "2023.06.13"]
[WhiteClock "0:00:00"]
[BlackClock "0:00:34"]
[Board "56"]

1. Nf3 {[%clk 0:03:00]}  d6 {[%clk 0:02:44]} 2. d4 {[%clk 0:03:00]}  Nf6 {[%clk 0:02:42]} 3. g3 {[%clk 0:03:00]}  g6 {[%clk 0:02:42]} 4. Bg2 {[%clk 0:03:01]}  Bg7 {[%clk 0:02:43]} 5. O-O {[%clk 0:03:01]}  O-O {[%clk 0:02:43]} 6. Nbd2 {[%clk 0:03:02]}  c5 {[%clk 0:02:43]} 7. dxc5 {[%clk 0:03:02]}  dxc5 {[%clk 0:02:42]} 8. e4 {[%clk 0:03:02]}  Nc6 {[%clk 0:02:42]} 9. c3 {[%clk 0:03:03]}  b6 {[%clk 0:02:41]} 10. Qe2 {[%clk 0:03:03]}  Bb7 {[%clk 0:02:42]} 11. Rd1 {[%clk 0:03:03]}  Qc7 {[%clk 0:02:41]} 12. Nf1 {[%clk 0:03:04]}  Rad8 {[%clk 0:02:41]} 13. Bf4 {[%clk 0:03:04]}  Qc8 {[%clk 0:02:41]} 14. Ne5 {[%clk 0:03:04]}  Nxe5 {[%clk 0:02:41]} 15. Bxe5 {[%clk 0:03:05]}  Bc6 {[%clk 0:02:39]} 16. Bxf6 {[%clk 0:03:01]}  Bxf6 {[%clk 0:02:36]} 17. e5 {[%clk 0:03:00]}  Bg7 {[%clk 0:02:36]} 18. f4 {[%clk 0:02:57]}  Bxg2 {[%clk 0:02:24]} 19. Kxg2 {[%clk 0:02:53]}  Qc6+ {[%clk 0:02:21]} 20. Qf3 {[%clk 0:02:53]}  Qb5 {[%clk 0:02:22]} 21. b3 {[%clk 0:02:50]}  f6 {[%clk 0:02:21]} 22. exf6 {[%clk 0:02:48]}  exf6 {[%clk 0:02:18]} 23. Rxd8 {[%clk 0:02:40]}  Rxd8 {[%clk 0:02:18]} 24. Rd1 {[%clk 0:02:40]}  Qe8 {[%clk 0:02:14]} 25. Ne3 {[%clk 0:02:29]}  f5 {[%clk 0:02:14]} 26. Rxd8 {[%clk 0:02:28]}  Qxd8 {[%clk 0:02:15]} 27. Qd5+ {[%clk 0:02:26]}  Qxd5+ {[%clk 0:02:15]} 28. Nxd5 {[%clk 0:02:27]}  Kf7 {[%clk 0:02:15]} 29. c4 {[%clk 0:02:27]}  Ke6 {[%clk 0:02:15]} 30. Kf3 {[%clk 0:02:24]}  Kd6 {[%clk 0:02:16]} 31. h3 {[%clk 0:02:22]}  b5 {[%clk 0:02:14]} 32. g4 {[%clk 0:02:22]}  bxc4 {[%clk 0:02:11]} 33. bxc4 {[%clk 0:02:22]}  Bd4 {[%clk 0:02:11]} 34. Kg3 {[%clk 0:02:11]}  Ke6 {[%clk 0:02:00]} 35. Kh4 {[%clk 0:02:09]}  Bf6+ {[%clk 0:01:55]} 36. Kg3 {[%clk 0:02:09]}  Bd8 {[%clk 0:01:54]} 37. Ne3 {[%clk 0:02:04]}  fxg4 {[%clk 0:01:54]} 38. hxg4 {[%clk 0:02:04]}  Bc7 {[%clk 0:01:46]} 39. g5 {[%clk 0:02:01]}  Ba5 {[%clk 0:01:42]} 40. Kf3 {[%clk 0:01:55]}  Bd2 {[%clk 0:01:39]} 41. Nf1 {[%clk 0:01:53]}  Bb4 {[%clk 0:01:38]} 42. Ke4 {[%clk 0:01:53]}  Be1 {[%clk 0:01:37]} 43. Ne3 {[%clk 0:01:52]}  Bc3 {[%clk 0:01:36]} 44. Nd5 {[%clk 0:01:49]}  Ba5 {[%clk 0:01:36]} 45. Ne3 {[%clk 0:01:36]}  Bb6 {[%clk 0:01:35]} 46. Ng4 {[%clk 0:01:29]}  Bc7 {[%clk 0:01:36]} 47. Nf2 {[%clk 0:01:24]}  Bd6 {[%clk 0:01:33]} 48. Nd3 {[%clk 0:01:24]}  Bf8 {[%clk 0:01:33]} 49. Ne5 {[%clk 0:01:24]}  Bd6 {[%clk 0:01:29]} 50. Nc6 {[%clk 0:01:21]}  a6 {[%clk 0:01:28]} 51. Na5 {[%clk 0:01:18]}  Bf8 {[%clk 0:01:24]} 52. Nb3 {[%clk 0:01:16]}  Be7 {[%clk 0:01:19]} 53. Nd2 {[%clk 0:01:13]}  Bd6 {[%clk 0:01:19]} 54. Nf3 {[%clk 0:01:11]}  Bc7 {[%clk 0:01:19]} 55. Ne1 {[%clk 0:01:09]}  Bb8 {[%clk 0:01:18]} 56. Nc2 {[%clk 0:01:09]}  Bd6 {[%clk 0:01:16]} 57. Ne3 {[%clk 0:01:09]}  Bf8 {[%clk 0:01:13]} 58. Nd5 {[%clk 0:00:55]}  Bd6 {[%clk 0:01:12]} 59. Kf3 {[%clk 0:00:54]}  Bb8 {[%clk 0:01:08]} 60. Kg4 {[%clk 0:00:53]}  Bd6 {[%clk 0:01:07]} 61. Nc3 {[%clk 0:00:38]}  Bf8 {[%clk 0:01:06]} 62. Ne4 {[%clk 0:00:37]}  Be7 {[%clk 0:01:07]} 63. Kf3 {[%clk 0:00:37]}  Bf8 {[%clk 0:01:02]} 64. Nf6 {[%clk 0:00:33]}  h5 {[%clk 0:00:59]} 65. Ne4 {[%clk 0:00:33]}  Be7 {[%clk 0:00:56]} 66. Nf2 {[%clk 0:00:27]}  Kf5 {[%clk 0:00:55]} 67. Nd1 {[%clk 0:00:25]}  Bd6 {[%clk 0:00:49]} 68. Ne3+ {[%clk 0:00:25]}  Ke6 {[%clk 0:00:50]} 69. Ke4 {[%clk 0:00:21]}  Be7 {[%clk 0:00:46]} 70. Ng2 {[%clk 0:00:18]}  Bd8 {[%clk 0:00:44]} 71. Nh4 {[%clk 0:00:18]}  Kf7 {[%clk 0:00:45]} 72. Ke5 {[%clk 0:00:15]}  Bc7+ {[%clk 0:00:44]} 73. Ke4 {[%clk 0:00:15]}  Bd8 {[%clk 0:00:43]} 74. Kd5 {[%clk 0:00:15]}  Bc7 {[%clk 0:00:42]} 75. Ng2 {[%clk 0:00:15]}  Bb8 {[%clk 0:00:38]} 76. Kxc5 {[%clk 0:00:15]}  Ke6 {[%clk 0:00:39]} 77. Kd4 {[%clk 0:00:13]}  Kf5 {[%clk 0:00:39]} 78. Ke3 {[%clk 0:00:13]}  Kg4 {[%clk 0:00:39]} 79. Ke4 {[%clk 0:00:12]}  Bd6 {[%clk 0:00:37]} 80. Kd5 {[%clk 0:00:10]}  Bc7 {[%clk 0:00:37]} 81. c5 {[%clk 0:00:10]}  h4 {[%clk 0:00:36]} 82. Nxh4 {[%clk 0:00:08]}  Kxh4 {[%clk 0:00:36]} 83. Ke6 {[%clk 0:00:04]}  Bxf4 {[%clk 0:00:35]} 84. c6 {[%clk 0:00:00]}  Kxg5 {[%clk 0:00:34]} 0-1


[Site "https://www.chess.com"]

[Event "Titled Tuesday Blitz June 13 Late 2023"]
[White "Tejedor Fuente, Enrique"]
[Black "Zomorrodian, Eilia"]
[WhiteFideId "2299100"]
[BlackFideId "12551805"]
[WhiteElo "2496"]
[BlackElo "2069"]
[Result "1-0"]
[Round "7"]
[TimeControl "180+2"]
[Date "2023.06.13"]
[WhiteClock "0:01:10"]
[BlackClock "0:00:10"]
[Board "57"]

1. Nf3 {[%clk 0:02:58]}  Nf6 {[%clk 0:02:58]} 2. c3 {[%clk 0:02:55]}  g6 {[%clk 0:02:58]} 3. g3 {[%clk 0:02:54]}  Bg7 {[%clk 0:02:58]} 4. Bg2 {[%clk 0:02:55]}  O-O {[%clk 0:02:59]} 5. d3 {[%clk 0:02:56]}  d6 {[%clk 0:03:00]} 6. O-O {[%clk 0:02:56]}  e5 {[%clk 0:03:00]} 7. b4 {[%clk 0:02:57]}  h6 {[%clk 0:02:56]} 8. Bb2 {[%clk 0:02:57]}  Nc6 {[%clk 0:02:56]} 9. b5 {[%clk 0:02:57]}  Ne7 {[%clk 0:02:57]} 10. c4 {[%clk 0:02:58]}  Be6 {[%clk 0:02:56]} 11. a4 {[%clk 0:02:58]}  Qd7 {[%clk 0:02:56]} 12. Nfd2 {[%clk 0:02:58]}  c6 {[%clk 0:02:55]} 13. Nc3 {[%clk 0:02:58]}  d5 {[%clk 0:02:53]} 14. bxc6 {[%clk 0:02:58]}  bxc6 {[%clk 0:02:53]} 15. Nb3 {[%clk 0:02:59]}  dxc4 {[%clk 0:02:40]} 16. Nc5 {[%clk 0:02:57]}  Qc8 {[%clk 0:02:37]} 17. Nxe6 {[%clk 0:02:56]}  Qxe6 {[%clk 0:02:38]} 18. dxc4 {[%clk 0:02:56]}  Qxc4 {[%clk 0:02:37]} 19. Qd6 {[%clk 0:02:54]}  Rfe8 {[%clk 0:02:09]} 20. Rfd1 {[%clk 0:02:48]}  Nf5 {[%clk 0:02:03]} 21. Qxc6 {[%clk 0:02:34]}  Qb3 {[%clk 0:02:03]} 22. Qb5 {[%clk 0:02:07]}  Rab8 {[%clk 0:02:00]} 23. Qxb3 {[%clk 0:02:02]}  Rxb3 {[%clk 0:02:01]} 24. Ra2 {[%clk 0:02:01]}  Nd4 {[%clk 0:01:32]} 25. e3 {[%clk 0:01:59]}  Nc2 {[%clk 0:01:28]} 26. Nd5 {[%clk 0:01:52]}  Nxd5 {[%clk 0:01:15]} 27. Bxd5 {[%clk 0:01:50]}  Rb6 {[%clk 0:01:11]} 28. a5 {[%clk 0:01:34]}  Rbb8 {[%clk 0:00:59]} 29. Ba3 {[%clk 0:01:30]}  Nb4 {[%clk 0:00:55]} 30. Bxb4 {[%clk 0:01:30]}  Rxb4 {[%clk 0:00:56]} 31. a6 {[%clk 0:01:30]}  Bf8 {[%clk 0:00:31]} 32. Rc2 {[%clk 0:01:27]}  Rb6 {[%clk 0:00:17]} 33. Rc7 {[%clk 0:01:25]}  Re7 {[%clk 0:00:14]} 34. Rxe7 {[%clk 0:01:17]}  Bxe7 {[%clk 0:00:15]} 35. Bb7 {[%clk 0:01:18]}  Kg7 {[%clk 0:00:15]} 36. Rd7 {[%clk 0:01:17]}  Bc5 {[%clk 0:00:14]} 37. Bd5 {[%clk 0:01:17]}  Rf6 {[%clk 0:00:15]} 38. Kg2 {[%clk 0:01:14]}  Bb6 {[%clk 0:00:15]} 39. Rb7 {[%clk 0:01:14]}  g5 {[%clk 0:00:13]} 40. g4 {[%clk 0:01:14]}  Kg6 {[%clk 0:00:13]} 41. Be4+ {[%clk 0:01:14]}  Kg7 {[%clk 0:00:13]} 42. h3 {[%clk 0:01:15]}  Rd6 {[%clk 0:00:12]} 43. Kf3 {[%clk 0:01:14]}  Kf6 {[%clk 0:00:11]} 44. Bh7 {[%clk 0:01:13]}  Kg7 {[%clk 0:00:11]} 45. Bf5 {[%clk 0:01:12]}  Rc6 {[%clk 0:00:11]} 46. Be4 {[%clk 0:01:11]}  Rc7 {[%clk 0:00:11]} 47. Rb8 {[%clk 0:01:11]}  Kf6 {[%clk 0:00:10]} 48. Rh8 {[%clk 0:01:10]}  Kg7 {[%clk 0:00:10]} 49. Rh7+ {[%clk 0:01:10]}  Kg8 {[%clk 0:00:11]} 50. Rxh6 {[%clk 0:01:11]}  Rc4 {[%clk 0:00:10]} 51. Rxb6 {[%clk 0:01:10]} 1-0


[Site "https://www.chess.com"]